bitfinex/quotes_ETHUSD_20251026
["timestamp","ask_amount","ask_price","bid_price","bid_amount"]
[1761482145134,0.001,4050.7,4049.9,5.50673241]
[1761482145333,0.001,4050.7,4049.9,10.50373241]
[1761482146443,0.001,4050.7,4049.9,1.38360617]
[1761482146642,2.46877325,4050.6,4049.9,3.7097]
[1761482146846,2.46885804,4050.5,4049.9,3.7097]
[1761482148931,2.46985804,4050.5,4049.9,3.7097]
[1761482149170,0.001,4050.5,4049.9,7.75878873]
[1761482149369,0.001,4050.5,4049.9,8.68561878]
[1761482149569,0.001,4050.5,4049.9,8.12973729]
[1761482150591,0.001,4050.7,4050.4,2.46889196]
[1761482150752,0.001,4050.7,4050.6,2.46877005]
[1761482150937,0.001,4050.7,4050.6,4.14717005]
[1761482151144,0.001,4050.7,4050.6,4.58667005]
[1761482152071,0.001,4050.7,4050.6,4.61135775]
[1761482153039,0.001,4051.9,4050.7,4.46340411]
[1761482153236,0.001,4051.9,4051.3,2.68504349]
[1761482153541,0.001,4051.9,4051.3,7.50944349]
[1761482153860,0.001,4051.9,4051.3,7.94894349]
[1761482160266,0.001,4051.9,4051.3,8.60255311]
[1761482160985,0.001,4051.9,4051.3,5.45655311]
[1761482161163,0.001,4051.9,4051.3,11.33027301]
[1761482162167,0.001,4051.9,4051.3,10.67666339]
[1761482162366,0.001,4051.9,4051.3,11.83816938]
[1761482162589,0.001,4051.9,4051.8,2.46803889]
[1761482162764,0.001,4051.9,4051.8,8.18742391]
[1761482162968,0.001,4051.9,4051.8,10.94880897]
[1761482163756,0.001,4051.9,4051.8,10.84880897]
[1761482163961,0.001,4051.9,4051.8,11.72011361]
[1761482164265,0.001,4051.9,4051.8,11.72142367]
[1761482164981,0.001,4051.9,4051.8,5.85480897]
[1761482165290,0.001,4051.9,4051.8,10.84880897]
[1761482166188,0.001,4051.9,4051.8,5.85480897]
[1761482166388,0.001,4051.9,4051.8,10.84780897]
[1761482167301,0.001,4051.9,4051.8,12.15476593]
[1761482167662,0.001,4051.9,4051.8,10.84780897]
[1761482167970,0.001,4051.9,4051.8,12.15794907]
[1761482168195,0.001,4051.9,4051.8,10.84780897]
[1761482169490,0.001,4051.9,4051.8,5.85480897]
[1761482169689,0.001,4051.9,4051.8,12.15812823]
[1761482169985,0.001,4051.9,4051.8,6.70852823]
[1761482170179,0.001,4051.9,4051.8,12.14062823]
[1761482170976,0.001,4051.9,4051.8,10.83030897]
[1761482172094,0.001,4051.9,4051.8,10.70710897]
[1761482172305,0.001,4051.9,4051.8,11.41650556]
[1761482174089,0.001,4051.9,4051.8,13.16550417]
[1761482174310,1e-08,4052.4,4052.3,2.46773437]
[1761482174463,1e-08,4052.4,4052.3,7.16693437]
[1761482174666,1e-08,4052.4,4052.3,8.60185495]
[1761482175396,1e-08,4052.4,4052.3,9.04095495]
[1761482177106,1e-08,4052.4,4052.3,10.35121433]
[1761482177795,1e-08,4052.4,4052.3,9.04095495]
[1761482178128,1e-08,4052.4,4052.3,5.89695495]
[1761482178332,1e-08,4052.4,4052.3,9.45403437]
[1761482181109,1e-08,4052.4,4052.3,9.99794639]
[1761482181309,1e-08,4052.4,4052.3,11.98582639]
[1761482181599,0.001,4053.5,4053.4,2.46706468]
[1761482181795,0.001,4053.5,4053.4,8.47842256]
[1761482182102,0.001,4053.5,4053.4,9.78900482]
[1761482182728,0.001,4053.5,4053.4,8.47584694]
[1761482183402,0.001,4053.5,4053.4,7.16526468]
[1761482183607,0.001,4053.5,4053.4,7.60436468]
[1761482184225,0.001,4053.5,4053.4,7.72756468]
[1761482185936,0.001,4053.5,4053.4,7.28746468]
[1761482186340,0.001,4053.5,4053.4,7.72656468]
[1761482186511,0.001,4053.5,4053.4,9.40273383]
[1761482187005,0.001,4053.5,4053.4,6.50773383]
[1761482187211,0.001,4053.5,4053.4,9.64973383]
[1761482187434,0.001,4053.5,4053.4,11.49773383]
[1761482188447,0.001,4053.5,4053.4,11.37453383]
[1761482188653,0.001,4053.5,4053.4,6.38453383]
[1761482188949,0.001,4053.5,4053.4,11.37453383]
[1761482189541,0.001,4053.5,4053.4,6.38453383]
[1761482189940,0.001,4053.5,4053.4,11.37453383]
[1761482190340,0.001,4053.5,4053.4,11.6638184]
[1761482190536,0.001,4053.5,4053.4,13.6516984]
[1761482191045,0.001,4053.5,4053.4,6.6738184]
[1761482191220,0.001,4053.5,4053.4,11.37453383]
[1761482191742,0.001,4053.5,4053.4,6.38453383]
[1761482191918,0.001,4053.5,4053.4,11.37453383]
[1761482192424,0.001,4053.5,4053.4,11.07762181]
[1761482192940,0.001,4053.5,4053.4,14.95762181]
[1761482193511,0.001,4053.5,4053.4,6.08762181]
[1761482193710,0.001,4053.5,4053.4,11.37453383]
[1761482194780,0.001,4053.5,4053.4,11.88141383]
[1761482194985,0.099,4055.8,4055.4,2.46578899]
[1761482195187,0.2202,4056.2,4055.9,2.46553122]
[1761482195389,0.2202,4056.2,4056.0,5.7452]
[1761482195552,0.099,4056.1,4056.0,5.7452]
[1761482196381,0.099,4056.1,4056.0,1.5552]
[1761482196580,0.099,4056.1,4056.0,3.141]
[1761482197680,0.099,4056.1,4056.0,4.6962]
[1761482198052,0.1212,4056.2,4056.1,1.5552]
[1761482199254,0.1212,4056.2,4056.1,6.5442]
[1761482200598,0.1212,4056.2,4056.1,9.00962245]
[1761482200888,0.003,4056.4,4056.2,1.5552]
[1761482201973,0.61471039,4056.3,4056.2,1.5552]
[1761482203380,0.61571039,4056.3,4056.0,0.1232]
[1761482203576,0.0992,4056.2,4056.1,4.988]
[1761482203893,0.0992,4056.2,4056.1,6.5432]
[1761482204187,0.0992,4056.2,4056.1,1.5552]
[1761482204391,0.0992,4056.2,4056.1,6.5422]
[1761482204961,0.51651039,4056.3,4056.2,1.5552]
[1761482205160,0.61571039,4056.3,4056.2,6.5422]
[1761482205357,0.51651039,4056.3,4056.2,6.5422]
[1761482205573,0.51651039,4056.3,4056.2,6.6654]
[1761482205990,0.51651039,4056.3,4056.2,1.6784]
[1761482206159,0.51651039,4056.3,4056.2,6.6654]
[1761482206592,0.51651039,4056.3,4056.2,9.13076166]
[1761482207295,0.51651039,4056.3,4056.2,9.00756166]
[1761482207596,0.51651039,4056.3,4056.2,6.6654]
[1761482207774,0.61571039,4056.3,4056.2,6.6654]
[1761482207975,0.61571039,4056.3,4056.2,9.13076166]
[1761482208270,0.51651039,4056.3,4056.2,9.13076166]
[1761482208472,0.51651039,4056.3,4056.2,2.90344838]
[1761482208687,0.51651039,4056.3,4056.2,9.13076166]
[1761482209079,0.51651039,4056.3,4056.2,4.14376166]
[1761482209273,0.51651039,4056.3,4056.2,9.13076166]
[1761482209473,0.51651039,4056.3,4056.2,4.14376166]
[1761482209795,0.51651039,4056.3,4056.2,9.13076166]
[1761482210567,0.51651039,4056.3,4056.2,11.68753173]
[1761482210786,0.51651039,4056.3,4056.2,10.35580951]
[1761482212106,0.61571039,4056.3,4056.2,4.14376166]
[1761482212410,0.61571039,4056.3,4056.2,1.6784]
[1761482212614,0.61571039,4056.3,4056.2,5.47193479]
[1761482212918,0.61571039,4056.3,4056.2,5.47093479]
[1761482213066,0.61571039,4056.3,4055.8,0.65353479]
[1761482213403,2.68438401,4056.2,4055.5,0.65353479]
[1761482213608,2.68438401,4056.2,4055.2,0.87148072]
[1761482213609,0.219,4056.2,4055.6,3.139]
[1761482213763,0.099,4056.1,4055.6,3.139]
[1761482213966,0.1759,4055.7,4055.6,0.65353479]
[1761482214166,0.1759,4055.7,4055.6,3.79253479]
[1761482214408,0.2757,4055.7,4055.6,5.34773479]
[1761482214577,0.2757,4055.7,4055.6,3.79253479]
[1761482214786,0.2757,4055.7,4055.6,3.139]
[1761482215167,0.1759,4055.7,4055.6,3.139]
[1761482215368,0.1751,4055.9,4055.6,3.7937435]
[1761482215672,0.1751,4055.9,4055.8,0.6547435]
[1761482216105,0.1751,4055.9,4055.8,3.12034831]
[1761482216304,0.51651039,4056.3,4055.9,2.46553399]
[1761482216501,0.099,4056.2,4056.1,1.5552]
[1761482217412,0.51651039,4056.3,4056.1,2.21009298]
[1761482217578,0.51651039,4056.3,4056.2,0.65491513]
[1761482217901,0.51651039,4056.3,4056.2,3.12027679]
[1761482218102,0.51651039,4056.3,4056.2,0.65491513]
[1761482218398,0.51651039,4056.3,4056.2,4.67547679]
[1761482218599,0.51651039,4056.3,4056.2,7.15956166]
[1761482219915,0.51651039,4056.3,4056.2,8.03104238]
[1761482220779,0.51651039,4056.3,4056.2,2.42668072]
[1761482220976,0.61551039,4056.3,4056.2,0.65595561]
[1761482221183,0.50688,4056.2,4055.6,0.65595561]
[1761482221422,0.1767,4055.7,4055.6,0.65595561]
[1761482221632,0.1767,4055.7,4055.6,3.79495561]
[1761482221778,0.1767,4055.7,4055.6,4.6942]
[1761482221980,0.2757,4055.7,4055.6,0.65645047]
[1761482222193,0.2757,4055.7,4055.6,3.79545047]
[1761482222626,0.2757,4055.7,4055.6,0.65645047]
[1761482222831,0.2757,4055.7,4055.6,3.79545047]
[1761482223029,0.2757,4055.7,4055.6,5.35065047]
[1761482224615,0.2757,4055.7,4055.6,5.56568072]
[1761482224916,0.2757,4055.7,4055.6,2.42668072]
[1761482225080,0.2757,4055.7,4055.6,0.87148072]
[1761482225282,0.50688,4055.6,4055.4,0.65713437]
[1761482225482,3.07160897,4055.6,4055.5,3.139]
[1761482225695,3.07160897,4055.6,4054.2,3.59164445]
[1761482225696,2.972728,4055.4,4055.2,0.65713437]
[1761482225895,2.97292004,4055.1,4054.7,0.65713437]
[1761482226231,2.46615206,4054.9,4054.8,4.6942]
[1761482226397,2.46610519,4055.0,4054.8,4.6942]
[1761482226597,0.1208,4054.9,4054.8,4.6942]
[1761482226796,0.2198,4054.9,4054.8,4.6942]
[1761482227331,0.2198,4054.9,4054.8,3.139]
[1761482227726,0.50688,4054.8,4054.4,0.65713437]
[1761482227907,0.50688,4054.8,4054.6,1.5552]
[1761482227908,0.099,4054.8,4054.6,1.5552]
[1761482228108,0.099,4054.7,4054.6,1.5552]
[1761482228306,0.099,4054.7,4054.6,3.139]
[1761482228694,0.099,4054.7,4054.6,4.6942]
[1761482228899,0.099,4054.7,4054.6,1.5552]
[1761482229314,0.099,4054.7,4054.6,4.6942]
[1761482230528,0.2198,4054.9,4054.7,1.5552]
[1761482230830,0.50688,4054.8,4054.3,1.5552]
[1761482230998,0.60588,4054.8,4054.5,1.5552]
[1761482231201,0.099,4054.7,4054.5,1.5552]
[1761482231409,0.2198,4054.9,4054.5,1.5552]
[1761482231903,0.099,4054.8,4054.5,1.5552]
[1761482233598,0.099,4054.8,4054.7,1.5552]
[1761482233803,0.099,4054.8,4054.2,1.5552]
[1761482234001,0.099,4054.8,4054.3,3.14]
[1761482234521,0.1208,4054.9,4054.4,2.4664492]
[1761482235134,0.1232,4054.7,4054.3,3.14]
[1761482235433,0.739852,4055.4,4054.3,3.14]
[1761482235434,0.0992,4055.4,4054.4,2.21233437]
[1761482235732,0.1204,4054.9,4054.6,2.58949641]
[1761482235899,0.1204,4054.9,4054.6,1.6784]
[1761482236104,0.2198,4054.9,4054.7,1.5552]
[1761482236316,0.2198,4054.9,4054.2,0.65713437]
[1761482236317,0.0994,4054.8,4054.2,0.65713437]
[1761482236533,0.2226,4054.8,4054.3,4.6952]
[1761482236737,0.1232,4054.8,4054.5,2.46637586]
[1761482237039,0.1232,4054.8,4054.7,2.4662737]
[1761482237201,0.1232,4054.8,4054.7,4.0214737]
[1761482237400,0.1232,4055.2,4054.7,4.0214737]
[1761482237823,0.2228,4055.2,4054.7,4.0214737]
[1761482238002,0.1232,4055.2,4054.8,2.46620336]
[1761482238215,0.1232,4055.2,4055.0,1.5552]
[1761482239024,0.0996,4055.5,4055.0,1.5552]
[1761482240255,0.1777,4055.7,4055.0,2.5179636]
[1761482240402,0.1777,4055.7,4055.2,2.46596368]
[1761482240601,0.1777,4055.7,4055.4,1.5552]
[1761482241140,0.1777,4055.7,4054.8,0.65713437]
[1761482241141,3.07225103,4055.6,4054.8,0.65713437]
[1761482241307,3.07225103,4055.6,4055.5,1.5552]
[1761482241308,0.60648,4055.6,4055.5,1.5552]
[1761482241635,0.60648,4055.6,4055.5,4.6952]
[1761482242222,2.4657872,4055.5,4054.8,0.65433245]
[1761482242542,0.1199,4054.9,4054.7,0.65433245]
[1761482242742,0.1199,4054.9,4054.8,4.6952]
[1761482243647,0.50688,4055.6,4054.8,7.16140891]
[1761482243946,0.001,4055.7,4055.3,2.46590111]
[1761482244146,0.001,4055.7,4055.4,3.14]
[1761482244318,0.001,4055.7,4055.5,4.02094488]
[1761482244917,0.001,4055.7,4055.5,1.5552]
[1761482245948,0.001,4055.7,4055.5,4.020949]
[1761482246167,0.001,4055.7,4055.6,2.4657264]
[1761482247357,0.001,4055.7,4055.6,5.27888426]
[1761482247568,0.001,4055.7,4055.6,4.820427]
[1761482247863,0.001,4055.7,4055.6,5.254227]
[1761482248517,0.001,4055.7,4055.6,5.501227]
[1761482248719,0.001,4055.7,4055.6,6.37270772]
[1761482248919,0.001,4055.7,4055.6,5.501227]
[1761482249148,0.001,4055.7,4055.6,5.624427]
[1761482249541,0.001,4055.7,4055.6,5.377427]
[1761482250134,0.001,4055.7,4055.6,10.364427]
[1761482250544,0.001,4055.7,4055.6,11.67273567]
[1761482250774,0.001,4055.7,4055.6,10.241227]
[1761482250978,0.001,4055.7,4055.6,5.254227]
[1761482251196,0.001,4055.7,4055.6,10.241227]
[1761482251563,0.001,4055.7,4055.6,10.488227]
[1761482252274,0.001,4055.7,4055.6,5.501227]
[1761482252451,0.001,4055.7,4055.6,10.487227]
[1761482253403,0.001,4055.7,4055.6,5.501227]
[1761482253602,0.001,4055.7,4055.6,10.487227]
[1761482255189,0.001,4055.7,4055.6,10.240227]
[1761482255504,0.001,4055.7,4055.6,5.254227]
[1761482255654,0.001,4055.7,4055.6,10.240227]
[1761482256361,0.001,4055.7,4055.6,11.54442562]
[1761482257063,0.001,4055.7,4055.6,10.240227]
[1761482257264,0.001,4055.7,4055.6,11.10984356]
[1761482257563,0.001,4055.7,4055.6,10.67604356]
[1761482258289,0.001,4055.7,4055.6,11.10984356]
[1761482258688,0.001,4055.7,4055.6,10.240227]
[1761482259264,0.001,4055.7,4055.6,5.501227]
[1761482259609,0.001,4055.7,4055.6,5.254227]
[1761482259760,0.001,4055.7,4055.6,6.55905662]
[1761482259965,0.001,4055.7,4055.6,11.54505662]
[1761482260795,0.001,4055.7,4055.6,11.66825662]
[1761482260971,0.001,4055.7,4055.6,11.23445662]
[1761482261168,0.001,4055.7,4055.6,11.68495662]
[1761482261372,0.001,4055.7,4055.6,6.69895662]
[1761482261573,0.001,4055.7,4055.6,11.68495662]
[1761482262713,0.001,4055.7,4055.6,4.943627]
[1761482262900,0.1,4055.7,4055.6,0.9935717]
[1761482263076,0.1,4055.7,4055.6,3.91407902]
[1761482263281,0.001,4055.7,4055.6,5.71627902]
[1761482263472,0.001,4055.7,4055.6,2.57827902]
[1761482263677,0.1,4055.7,4055.6,5.0634]
[1761482263905,0.001,4055.7,4055.6,5.0634]
[1761482264310,0.001,4055.7,4055.6,7.5291264]
[1761482264687,0.001,4055.7,4055.6,5.0634]
[1761482265387,0.001,4055.7,4055.6,5.71627902]
[1761482266141,0.001,4055.7,4055.6,8.18200542]
[1761482266614,0.001,4055.7,4055.6,2.57827902]
[1761482266919,0.1,4055.7,4055.6,4.6932]
[1761482269219,0.1,4055.7,4055.6,5.34607902]
[1761482269825,0.001,4055.7,4055.6,7.1589264]
[1761482270243,0.001,4055.7,4055.6,4.6932]
[1761482270420,0.001,4055.7,4055.6,7.1589264]
[1761482270923,0.001,4055.7,4055.6,4.6932]
[1761482271823,0.001,4055.7,4055.6,7.1589264]
[1761482272597,0.001,4055.7,4055.6,4.6932]
[1761482272797,0.001,4055.7,4055.6,7.1589264]
[1761482273198,0.001,4055.7,4055.6,4.6932]
[1761482273793,0.001,4055.7,4055.6,1.5552]
[1761482274031,0.1,4055.7,4055.6,4.6932]
[1761482274730,0.001,4055.7,4055.6,4.6932]
[1761482275795,0.1,4055.7,4055.6,4.6932]
[1761482276003,0.1,4055.7,4055.5,0.8703717]
[1761482276229,0.1,4055.7,4055.6,3.138]
[1761482276615,0.1,4055.7,4055.1,0.65500378]
[1761482276816,0.1,4055.7,4055.3,1.5552]
[1761482277630,0.1,4055.7,4055.5,1.5552]
[1761482277807,0.001,4055.7,4055.5,1.5552]
[1761482278008,0.1,4055.7,4055.5,1.5552]
[1761482278209,0.001,4055.7,4055.6,5.3417981]
[1761482278408,0.001,4055.7,4055.6,4.89379149]
[1761482278723,0.001,4055.7,4055.6,9.0059264]
[1761482279115,0.001,4055.7,4055.6,9.4564264]
[1761482279704,0.001,4055.7,4055.6,9.7034264]
[1761482279900,0.001,4055.7,4055.6,11.12897831]
[1761482280824,0.001,4055.7,4055.6,12.43380793]
[1761482281907,0.001,4055.7,4055.6,11.42589033]
[1761482282636,0.001,4055.7,4055.6,11.12897831]
[1761482285024,0.001,4055.7,4055.6,11.42589033]
[1761482286116,0.001,4055.7,4055.6,11.54909033]
[1761482286752,0.001,4055.7,4055.6,13.29373478]
[1761482289053,0.001,4055.7,4055.6,12.99682276]
[1761482290867,0.001,4055.7,4055.6,8.01182276]
[1761482291065,0.001,4055.7,4055.6,12.99682276]
[1761482291283,0.63457882,4058.6,4056.5,0.247]
[1761482291578,1.09953842,4060.2,4055.7,3.68648858]
[1761482291579,1.2261777,4060.9,4060.2,0.1872]
[1761482291760,1.2261777,4060.9,4060.8,2.46256895]
[1761482291933,1.2261777,4060.9,4060.8,7.11701406]
[1761482292135,1.2261777,4060.9,4060.8,5.8083203]
[1761482292337,0.4437,4063.7,4062.5,2.4614947]
[1761482292655,0.4437,4063.7,4061.7,0.64889792]
[1761482292656,0.228,4062.7,4061.7,0.64889792]
[1761482292855,0.228,4062.7,4061.1,0.25740416]
[1761482293032,0.228,4062.7,4060.5,1.73039445]
[1761482293033,0.4437,4062.6,4060.9,2.46244979]
[1761482293238,0.1243,4064.0,4060.5,1.75502195]
[1761482293239,1.59178641,4065.6,4062.6,0.1459]
[1761482293431,1.59178641,4065.6,4061.0,0.57477124]
[1761482293432,0.4437,4063.2,4061.0,0.57477124]
[1761482293646,0.4437,4063.2,4061.0,1.87629445]
[1761482293845,0.4437,4063.2,4060.2,2.6501129]
[1761482293846,0.4437,4063.2,4060.7,3.57739445]
[1761482294051,1.5552,4063.1,4060.8,3.207]
[1761482294280,0.4437,4063.2,4060.9,0.4328]
[1761482294583,0.68305653,4063.1,4060.8,4.93739445]
[1761482294867,0.68305653,4063.1,4060.9,1.5552]
[1761482295056,0.4437,4063.0,4060.7,1.73039445]
[1761482295261,0.4437,4063.0,4060.5,2.46272299]
[1761482295262,0.4437,4063.0,4061.1,1.5552]
[1761482295457,2.46140981,4062.8,4060.2,1.91759445]
[1761482295767,0.50688,4062.3,4060.2,0.1872]
[1761482295953,0.50688,4061.5,4060.3,2.977]
[1761482296154,2.46220721,4061.4,4060.4,1.474]
[1761482296358,1.5552,4062.6,4060.4,1.474]
[1761482296359,2.46196267,4061.8,4060.4,1.474]
[1761482296537,0.4437,4061.5,4060.2,0.1872]
[1761482296737,2.90585116,4061.5,4059.6,1.5552]
[1761482296975,2.90585116,4061.5,4060.0,2.46300452]
[1761482296976,0.4437,4061.5,4060.0,2.46300452]
[1761482297267,0.4437,4061.5,4060.1,0.21182993]
[1761482297467,0.4437,4061.9,4060.4,1.5552]
[1761482297645,0.4437,4061.9,4060.6,1.5552]
[1761482297845,0.228,4062.0,4060.7,2.46262959]
[1761482298067,0.228,4062.4,4060.7,1.58636026]
[1761482298245,0.228,4062.4,4060.8,2.38648118]
[1761482298447,0.228,4062.4,4061.3,2.46224991]
[1761482298643,0.228,4062.4,4061.5,1.5552]
[1761482299172,0.228,4062.4,4060.9,0.4328]
[1761482299173,0.228,4062.4,4060.6,1.73039445]
[1761482299401,0.228,4060.7,4059.8,0.1872]
[1761482299687,0.50688,4062.2,4059.8,0.1872]
[1761482299688,2.46214716,4061.5,4059.9,3.40075945]
[1761482299893,0.50688,4061.8,4060.0,0.22327623]
[1761482300042,0.228,4061.8,4060.1,0.02462993]
[1761482300355,0.6717,4061.8,4060.2,3.209]
[1761482300553,0.50688,4061.6,4060.2,3.209]
[1761482300767,0.50688,4061.2,4057.9,1.73039445]
[1761482300967,2.46331158,4059.6,4058.1,3.27144403]
[1761482301169,0.1232,4059.5,4058.9,0.1232]
[1761482301371,0.5669,4059.5,4059.0,3.222]
[1761482301691,0.5669,4059.5,4058.0,4.4561422]
[1761482301692,0.228,4060.0,4059.1,1.77862315]
[1761482301872,0.228,4060.0,4059.9,0.1232]
[1761482302068,0.228,4060.0,4059.9,1.6784]
[1761482302612,0.6717,4060.0,4059.9,1.5552]
[1761482302898,0.6717,4060.0,4059.9,4.4012]
[1761482303084,0.6717,4060.0,4059.2,0.1232]
[1761482303085,0.50688,4059.9,4059.2,0.1232]
[1761482303395,0.1232,4059.5,4059.3,3.223]
[1761482303592,0.1232,4059.5,4059.0,0.1232]
[1761482303899,0.4437,4059.4,4059.2,1.5552]
[1761482304059,0.1232,4059.5,4059.2,1.5552]
[1761482304388,0.4437,4059.4,4059.2,1.5552]
[1761482304588,0.4437,4059.4,4058.1,1.73039445]
[1761482304589,0.4437,4059.4,4058.7,2.46380355]
[1761482304791,0.4437,4059.4,4058.9,1.5552]
[1761482304965,0.4437,4059.4,4059.1,1.6784]
[1761482305158,0.228,4059.3,4059.2,0.51505265]
[1761482305583,0.6717,4059.3,4059.2,5.29525265]
[1761482305789,0.1232,4059.5,4059.3,1.5552]
[1761482306005,0.228,4060.0,4059.5,1.5552]
[1761482306171,0.228,4060.0,4059.6,0.51505265]
[1761482306369,0.228,4060.0,4059.2,3.225]
[1761482306370,0.228,4060.3,4059.7,0.51505265]
[1761482306709,0.228,4060.3,4059.3,1.5552]
[1761482306710,0.228,4060.3,4059.9,1.5552]
[1761482306908,0.228,4060.7,4060.1,1.5552]
[1761482307198,0.001,4060.4,4060.3,1.5552]
[1761482307495,0.001,4060.4,4060.3,0.51505265]
[1761482307674,0.1894211,4060.7,4060.3,0.51505265]
[1761482307998,0.1894211,4060.7,4060.4,2.54305265]
[1761482308181,0.1894211,4060.7,4060.5,0.51505265]
[1761482308381,0.47750951,4060.7,4060.6,0.51505265]
[1761482308772,0.1894211,4060.7,4060.6,0.51505265]
[1761482309079,0.6963011,4060.7,4060.6,0.51505265]
[1761482309285,0.6963011,4060.7,4060.6,3.74005265]
[1761482309682,3.60263069,4060.7,4060.6,3.74005265]
[1761482310069,2.46282226,4060.4,4059.1,1.73039445]
[1761482310263,0.24628223,4060.3,4059.2,3.96505815]
[1761482310458,0.68998223,4060.3,4059.3,0.74005815]
[1761482310664,0.68998223,4060.3,4059.5,1.5552]
[1761482310870,0.4437,4060.2,4059.6,0.51609126]
[1761482311067,0.4437,4060.2,4059.7,0.51609126]
[1761482311274,0.4437,4060.2,4059.8,3.74009126]
[1761482311470,0.4437,4060.2,4059.9,0.51609126]
[1761482311673,0.4437,4060.2,4060.1,1.5552]
[1761482311915,0.73434662,4060.2,4060.1,3.74009126]
[1761482313217,0.73434662,4060.2,4060.1,0.51609126]
[1761482313712,0.73434662,4060.2,4060.1,5.29329126]
[1761482314213,0.73434662,4060.2,4060.1,2.07129126]
[1761482314792,0.73434662,4060.2,4060.1,5.29129126]
[1761482314991,3.19727948,4060.2,4060.1,2.07129126]
[1761482315207,3.19727948,4060.2,4060.1,0.51609126]
[1761482315378,3.19727948,4060.2,4060.1,3.73509126]
[1761482315779,0.73434662,4060.2,4060.1,3.73509126]
[1761482315980,0.73434662,4060.2,4058.8,2.46377502]
[1761482315981,2.96987352,4060.1,4059.3,1.2914991]
[1761482316286,0.4437,4060.1,4059.2,3.22]
[1761482316485,2.46327888,4059.7,4059.3,3.221]
[1761482316690,2.46327888,4059.7,4059.4,3.224]
[1761482316904,0.6717,4059.6,4059.5,3.223]
[1761482318079,0.6717,4059.6,4059.5,4.7782]
[1761482318080,0.228,4059.6,4059.5,4.7782]
[1761482318405,0.228,4059.6,4059.5,6.0696991]
[1761482319109,0.4437,4060.2,4059.6,1.5552]
[1761482319292,0.2157,4059.8,4059.6,2.85431552]
[1761482320006,0.2157,4059.8,4059.7,4.7762]
[1761482320688,0.6698,4059.8,4059.7,1.5552]
[1761482320896,0.6698,4059.8,4059.7,6.07582932]
[1761482321084,0.6698,4059.8,4059.3,1.73039445]
[1761482321283,0.4541,4059.7,4059.5,1.5552]
[1761482321587,0.4541,4059.7,4059.6,3.219]
[1761482322078,0.4541,4059.7,4059.2,1.73039445]
[1761482322283,2.46329687,4059.6,4059.0,1.73039445]
[1761482322503,0.4541,4059.7,4059.0,1.73039445]
[1761482322504,0.50688,4059.5,4059.0,1.73039445]
[1761482322703,0.50688,4059.5,4059.2,1.5552]
[1761482322704,2.46353501,4059.3,4059.2,1.5552]
[1761482322909,0.2157,4059.8,4059.2,1.5552]
[1761482323218,0.4541,4059.3,4059.2,1.5552]
[1761482323583,0.2157,4059.8,4059.2,1.5552]
[1761482323784,0.4541,4059.7,4059.6,0.8687328]
[1761482324088,0.4541,4059.7,4059.6,4.0877328]
[1761482324685,2.91733619,4059.7,4059.6,4.0877328]
[1761482324881,2.91733619,4059.7,4059.6,5.6419328]
[1761482325092,2.91733619,4059.7,4059.6,2.4239328]
[1761482325299,2.91733619,4059.7,4059.6,5.6429328]
[1761482325503,2.91733619,4059.7,4059.6,2.4239328]
[1761482325711,2.91733619,4059.7,4059.6,5.6429328]
[1761482325916,3.04053619,4059.7,4059.6,5.63848891]
[1761482326113,3.04053619,4059.7,4059.6,2.41948891]
[1761482326494,2.46347892,4059.3,4059.1,1.3050992]
[1761482326818,2.46347892,4059.3,4059.2,4.7732]
[1761482326990,2.58667892,4059.3,4059.2,4.7732]
[1761482327692,3.04077892,4059.3,4059.2,4.7732]
[1761482327895,3.04077892,4059.3,4059.2,3.218]
[1761482328131,3.04077892,4059.3,4059.2,3.74000086]
[1761482328487,0.5773,4059.3,4059.2,3.74000086]
[1761482328920,3.04077892,4059.3,4059.2,3.74000086]
[1761482329324,0.5773,4059.3,4059.2,3.74000086]
[1761482329702,3.04077892,4059.3,4059.2,3.74000086]
[1761482330529,3.04077892,4059.3,4059.2,0.52200086]
[1761482330820,0.4541,4059.3,4059.2,3.73900086]
[1761482331226,0.4541,4059.7,4059.2,3.73900086]
[1761482331520,0.4541,4059.7,4059.3,2.07720086]
[1761482331718,0.4541,4059.7,4059.4,0.52200086]
[1761482331920,0.4541,4059.7,4059.5,0.52200086]
[1761482332091,0.4541,4059.7,4059.6,3.73800086]
[1761482335525,0.2157,4059.8,4059.6,5.29320086]
[1761482335828,0.6698,4059.8,4059.7,0.52200086]
[1761482336230,0.2157,4059.8,4059.7,0.52200086]
[1761482336525,0.6698,4059.8,4059.7,3.73400086]
[1761482336739,3.13297552,4059.8,4059.7,0.52200086]
[1761482337065,0.6698,4059.8,4059.7,3.73300086]
[1761482338405,3.13297552,4059.8,4059.7,0.52200086]
[1761482338605,3.13297552,4059.8,4059.7,3.73100086]
[1761482339040,3.13297552,4059.8,4059.7,0.52200086]
[1761482339400,3.13297552,4059.8,4059.7,3.73100086]
[1761482339911,3.63985552,4059.8,4059.7,0.52200086]
[1761482340102,3.63985552,4059.8,4059.7,3.73000086]
[1761482340531,3.63985552,4059.8,4059.7,0.52200086]
[1761482340736,3.76305552,4059.8,4059.7,3.73000086]
[1761482340965,2.97041961,4059.2,4059.1,0.002]
[1761482341247,3.09361961,4059.2,4059.1,0.52627449]
[1761482341451,3.54771961,4059.2,4059.1,2.80021715]
[1761482341653,3.42451961,4059.2,4059.1,2.80021715]
[1761482341851,3.42451961,4059.2,4059.1,2.276]
[1761482342546,0.4541,4059.2,4059.1,2.276]
[1761482342724,0.4541,4059.2,4059.1,2.80010783]
[1761482343051,2.91763961,4059.2,4059.1,2.80004631]
[1761482343246,3.42451961,4059.2,4059.1,3.73304631]
[1761482343449,3.42451961,4059.2,4059.1,3.209]
[1761482343963,3.42451961,4059.2,4059.1,0.002]
[1761482344249,3.42451961,4059.2,4059.1,3.208]